[Event "Titled Tuesday Blitz March 29 Late 2022"]
[White "Papasimakopoulos, Alexandros"]
[Black "Melikhov, Evgeny V."]
[WhiteFideId "4244125"]
[BlackFideId "4122046"]
[WhiteElo "2340"]
[BlackElo "1945"]
[Result "1-0"]
[Round "02"]
[TimeControl "180+1"]
[Date "2022.03.30"]
[WhiteClock "0:01:14"]
[BlackClock "0:00:48"]

1. d4 {[%clk 0:02:59]}  Nf6 {[%clk 0:02:59]} 2. c4 {[%clk 0:02:55]}  e6 {[%clk 0:02:59]} 3. Nc3 {[%clk 0:02:55]}  Bb4 {[%clk 0:02:58]} 4. Qc2 {[%clk 0:02:56]}  c5 {[%clk 0:02:58]} 5. dxc5 {[%clk 0:02:53]}  Na6 {[%clk 0:02:58]} 6. a3 {[%clk 0:02:53]}  Bxc3+ {[%clk 0:02:58]} 7. Qxc3 {[%clk 0:02:54]}  Nxc5 {[%clk 0:02:58]} 8. f3 {[%clk 0:02:54]}  d6 {[%clk 0:02:57]} 9. b4 {[%clk 0:02:53]}  Ncd7 {[%clk 0:02:38]} 10. e4 {[%clk 0:02:50]}  O-O {[%clk 0:02:33]} 11. Bd3 {[%clk 0:02:51]}  e5 {[%clk 0:02:17]} 12. Ne2 {[%clk 0:02:50]}  a5 {[%clk 0:02:13]} 13. Be3 {[%clk 0:02:45]}  axb4 {[%clk 0:02:07]} 14. axb4 {[%clk 0:02:46]}  Rxa1+ {[%clk 0:02:07]} 15. Qxa1 {[%clk 0:02:47]}  Qc7 {[%clk 0:01:53]} 16. O-O {[%clk 0:02:42]}  Rd8 {[%clk 0:01:47]} 17. Nc3 {[%clk 0:02:38]}  Nf8 {[%clk 0:01:43]} 18. Nb5 {[%clk 0:02:37]}  Qe7 {[%clk 0:01:42]} 19. Bb6 {[%clk 0:02:37]}  Be6 {[%clk 0:01:36]} 20. Bxd8 {[%clk 0:02:35]}  Qxd8 {[%clk 0:01:36]} 21. Qa7 {[%clk 0:02:33]}  Qe7 {[%clk 0:01:21]} 22. Qb6 {[%clk 0:02:29]}  Ne8 {[%clk 0:01:21]} 23. Ra1 {[%clk 0:02:14]}  Ng6 {[%clk 0:01:20]} 24. g3 {[%clk 0:02:10]}  h5 {[%clk 0:01:19]} 25. Ra8 {[%clk 0:02:03]}  Kh7 {[%clk 0:01:19]} 26. Qe3 {[%clk 0:01:27]}  h4 {[%clk 0:01:10]} 27. Kf2 {[%clk 0:01:24]}  hxg3+ {[%clk 0:01:07]} 28. hxg3 {[%clk 0:01:25]}  Nc7 {[%clk 0:01:07]} 29. Nxc7 {[%clk 0:01:18]}  Qxc7 {[%clk 0:01:07]} 30. Qe1 {[%clk 0:01:18]}  Bh3 {[%clk 0:00:48]} 31. Qh1 {[%clk 0:01:16]}  Qb6+ {[%clk 0:00:48]} 32. Ke2 {[%clk 0:01:14]} 1-0


[Site "https://www.chess.com"]

[Event "Titled Tuesday Blitz March 29 Late 2022"]
[White "Petrovic, Aleksa"]
[Black "Ardila, Oscar Humberto"]
[WhiteFideId "967629"]
[BlackFideId "4404742"]
[WhiteElo "2245"]
[BlackElo "1966"]
[Result "1-0"]
[Round "02"]
[TimeControl "180+1"]
[Date "2022.03.30"]
[WhiteClock "0:00:56"]
[BlackClock "0:00:51"]

1. d4 {[%clk 0:03:00]}  Nf6 {[%clk 0:02:59]} 2. c4 {[%clk 0:02:58]}  e6 {[%clk 0:02:59]} 3. Nf3 {[%clk 0:02:57]}  c5 {[%clk 0:02:58]} 4. d5 {[%clk 0:02:54]}  exd5 {[%clk 0:02:58]} 5. cxd5 {[%clk 0:02:54]}  d6 {[%clk 0:02:58]} 6. Nc3 {[%clk 0:02:54]}  g6 {[%clk 0:02:57]} 7. Bf4 {[%clk 0:02:52]}  Bg7 {[%clk 0:02:53]} 8. Qa4+ {[%clk 0:02:52]}  Bd7 {[%clk 0:02:51]} 9. Qb3 {[%clk 0:02:52]}  Bc8 {[%clk 0:02:43]} 10. Nb5 {[%clk 0:02:44]}  Bf8 {[%clk 0:01:45]} 11. Qe3+ {[%clk 0:02:37]}  Be7 {[%clk 0:01:41]} 12. Nxd6+ {[%clk 0:02:27]}  Kf8 {[%clk 0:01:40]} 13. Bh6+ {[%clk 0:02:16]}  Kg8 {[%clk 0:01:40]} 14. Nxc8 {[%clk 0:02:16]}  Nxd5 {[%clk 0:01:34]} 15. Nxe7+ {[%clk 0:02:11]}  Nxe7 {[%clk 0:01:34]} 16. Qc3 {[%clk 0:02:03]}  Nf5 {[%clk 0:01:34]} 17. Rd1 {[%clk 0:02:00]}  Qe8 {[%clk 0:01:31]} 18. Bg5 {[%clk 0:01:46]}  h6 {[%clk 0:01:29]} 19. Rd8 {[%clk 0:01:44]}  Nc6 {[%clk 0:01:29]} 20. Rxe8+ {[%clk 0:01:41]}  Rxe8 {[%clk 0:01:30]} 21. Bf6 {[%clk 0:01:40]}  Rh7 {[%clk 0:01:30]} 22. g4 {[%clk 0:01:40]}  Nd6 {[%clk 0:01:26]} 23. b3 {[%clk 0:01:24]}  Ne4 {[%clk 0:01:26]} 24. Qb2 {[%clk 0:01:24]}  Re6 {[%clk 0:01:19]} 25. Bc3 {[%clk 0:01:20]}  f5 {[%clk 0:01:18]} 26. gxf5 {[%clk 0:01:19]}  gxf5 {[%clk 0:01:18]} 27. Rg1+ {[%clk 0:01:20]}  Kf8 {[%clk 0:01:19]} 28. Nh4 {[%clk 0:01:18]}  Rf7 {[%clk 0:01:17]} 29. Ng6+ {[%clk 0:01:14]}  Ke8 {[%clk 0:01:17]} 30. Nf4 {[%clk 0:01:14]}  Rd6 {[%clk 0:01:14]} 31. Rg8+ {[%clk 0:01:10]}  Kd7 {[%clk 0:01:14]} 32. f3 {[%clk 0:01:06]}  Nxc3 {[%clk 0:01:12]} 33. Qxc3 {[%clk 0:01:05]}  Rd4 {[%clk 0:01:03]} 34. Nd3 {[%clk 0:01:00]}  b6 {[%clk 0:01:02]} 35. e3 {[%clk 0:00:58]}  Rd5 {[%clk 0:01:00]} 36. Rg7 {[%clk 0:00:56]}  Rxg7 {[%clk 0:00:52]} 37. Qxg7+ {[%clk 0:00:57]}  Ne7 {[%clk 0:00:52]} 38. Nf4 {[%clk 0:00:56]}  Rd6 {[%clk 0:00:52]} 39. Bb5+ {[%clk 0:00:55]}  Kd8 {[%clk 0:00:51]} 40. Qf8+ {[%clk 0:00:56]} 1-0


[Site "https://www.chess.com"]

[Event "Titled Tuesday Blitz March 29 Late 2022"]
[White "Rastbod, Ali"]
[Black "Hakobyan, Aram"]
[WhiteFideId "12567477"]
[BlackFideId "13306677"]
[WhiteElo "2200"]
[BlackElo "2557"]
[Result "0-1"]
[Round "02"]
[TimeControl "180+1"]
[Date "2022.03.29"]
[WhiteClock "0:00:01"]
[BlackClock "0:01:12"]

1. c4 {[%clk 0:03:00]}  Nf6 {[%clk 0:02:59]} 2. Nc3 {[%clk 0:02:58]}  c5 {[%clk 0:02:59]} 3. g3 {[%clk 0:02:57]}  e6 {[%clk 0:02:59]} 4. Nf3 {[%clk 0:02:55]}  Nc6 {[%clk 0:02:59]} 5. Bg2 {[%clk 0:02:55]}  d5 {[%clk 0:03:00]} 6. cxd5 {[%clk 0:02:56]}  exd5 {[%clk 0:03:01]} 7. d4 {[%clk 0:02:56]}  cxd4 {[%clk 0:03:01]} 8. Nxd4 {[%clk 0:02:57]}  Bc5 {[%clk 0:03:02]} 9. Nb3 {[%clk 0:02:56]}  Bb6 {[%clk 0:03:02]} 10. O-O {[%clk 0:02:57]}  d4 {[%clk 0:03:01]} 11. Na4 {[%clk 0:02:55]}  O-O {[%clk 0:03:02]} 12. Bg5 {[%clk 0:02:55]}  Re8 {[%clk 0:03:00]} 13. Re1 {[%clk 0:02:48]}  h6 {[%clk 0:02:59]} 14. Bxf6 {[%clk 0:02:48]}  Qxf6 {[%clk 0:03:00]} 15. Nxb6 {[%clk 0:02:48]}  axb6 {[%clk 0:03:01]} 16. Bxc6 {[%clk 0:02:49]}  bxc6 {[%clk 0:03:02]} 17. Qxd4 {[%clk 0:02:49]}  Qd8 {[%clk 0:02:50]} 18. Qxd8 {[%clk 0:01:28]}  Rxd8 {[%clk 0:02:51]} 19. Red1 {[%clk 0:01:13]}  Rxd1+ {[%clk 0:02:51]} 20. Rxd1 {[%clk 0:01:14]}  Be6 {[%clk 0:02:50]} 21. Nc1 {[%clk 0:00:45]}  Bxa2 {[%clk 0:02:49]} 22. b3 {[%clk 0:00:40]}  Bb1 {[%clk 0:02:48]} 23. Rd6 {[%clk 0:00:36]}  Rc8 {[%clk 0:02:46]} 24. b4 {[%clk 0:00:33]}  Kf8 {[%clk 0:02:43]} 25. f3 {[%clk 0:00:26]}  Ke7 {[%clk 0:02:43]} 26. Rd2 {[%clk 0:00:27]}  Bf5 {[%clk 0:02:43]} 27. e4 {[%clk 0:00:27]}  Be6 {[%clk 0:02:43]} 28. Kf2 {[%clk 0:00:27]}  Ra8 {[%clk 0:02:42]} 29. Ne2 {[%clk 0:00:24]}  Ra4 {[%clk 0:02:38]} 30. Nd4 {[%clk 0:00:22]}  Bd7 {[%clk 0:02:39]} 31. Rb2 {[%clk 0:00:18]}  h5 {[%clk 0:02:37]} 32. h4 {[%clk 0:00:15]}  g6 {[%clk 0:02:31]} 33. Ke3 {[%clk 0:00:15]}  Ra3+ {[%clk 0:02:31]} 34. Rb3 {[%clk 0:00:14]}  Ra2 {[%clk 0:02:31]} 35. Rc3 {[%clk 0:00:13]}  Kd6 {[%clk 0:02:32]} 36. f4 {[%clk 0:00:13]}  c5 {[%clk 0:02:28]} 37. bxc5+ {[%clk 0:00:14]}  bxc5 {[%clk 0:02:29]} 38. e5+ {[%clk 0:00:13]}  Kd5 {[%clk 0:02:24]} 39. Nb3 {[%clk 0:00:11]}  c4 {[%clk 0:02:25]} 40. Nd2 {[%clk 0:00:08]}  Bb5 {[%clk 0:02:24]} 41. Ne4 {[%clk 0:00:07]}  Rg2 {[%clk 0:02:19]} 42. Rc1 {[%clk 0:00:07]}  Ke6 {[%clk 0:02:14]} 43. Kf3 {[%clk 0:00:03]}  Rb2 {[%clk 0:02:13]} 44. Nd6 {[%clk 0:00:04]}  Bc6+ {[%clk 0:02:13]} 45. Ke3 {[%clk 0:00:04]}  Rb3+ {[%clk 0:02:13]} 46. Kd4 {[%clk 0:00:05]}  Rxg3 {[%clk 0:02:12]} 47. Rxc4 {[%clk 0:00:05]}  Bd5 {[%clk 0:02:10]} 48. Rc7 {[%clk 0:00:06]}  Rg4 {[%clk 0:02:09]} 49. Rxf7 {[%clk 0:00:06]}  Ba2 {[%clk 0:02:06]} 50. Rf6+ {[%clk 0:00:06]}  Ke7 {[%clk 0:02:05]} 51. Kc5 {[%clk 0:00:04]}  Rxh4 {[%clk 0:02:03]} 52. f5 {[%clk 0:00:04]}  g5 {[%clk 0:02:01]} 53. Rh6 {[%clk 0:00:04]}  Rf4 {[%clk 0:01:58]} 54. Rh7+ {[%clk 0:00:04]}  Kd8 {[%clk 0:01:57]} 55. f6 {[%clk 0:00:05]}  g4 {[%clk 0:01:55]} 56. Rxh5 {[%clk 0:00:05]}  Rf1 {[%clk 0:01:46]} 57. Rg5 {[%clk 0:00:05]}  Be6 {[%clk 0:01:44]} 58. Rg7 {[%clk 0:00:04]}  Rf3 {[%clk 0:01:39]} 59. Nb7+ {[%clk 0:00:03]}  Kc8 {[%clk 0:01:38]} 60. Nd6+ {[%clk 0:00:04]}  Kb8 {[%clk 0:01:38]} 61. f7 {[%clk 0:00:03]}  g3 {[%clk 0:01:34]} 62. Rg8+ {[%clk 0:00:02]}  Ka7 {[%clk 0:01:34]} 63. Rg7 {[%clk 0:00:03]}  Ka6 {[%clk 0:01:34]} 64. Kd4 {[%clk 0:00:02]}  Bh3 {[%clk 0:01:29]} 65. Ne4 {[%clk 0:00:02]}  g2 {[%clk 0:01:29]} 66. Nf6 {[%clk 0:00:02]}  Rf4+ {[%clk 0:01:20]} 67. Kd5 {[%clk 0:00:02]}  Bg4 {[%clk 0:01:14]} 68. Rxg4 {[%clk 0:00:02]}  Rxg4 {[%clk 0:01:14]} 69. f8=Q {[%clk 0:00:03]}  g1=Q {[%clk 0:01:13]} 70. Qa3+ {[%clk 0:00:02]}  Kb5 {[%clk 0:01:14]} 71. Qb2+ {[%clk 0:00:01]}  Rb4 {[%clk 0:01:15]} 72. Qe2+ {[%clk 0:00:02]}  Ka5 {[%clk 0:01:14]} 73. Qa2+ {[%clk 0:00:02]}  Kb6 {[%clk 0:01:12]} 74. Nd7+ {[%clk 0:00:01]}  Kc7 {[%clk 0:01:12]} 75. Qa7+ {[%clk 0:00:01]}  Qxa7 {[%clk 0:01:12]} 0-1


[Site "https://www.chess.com"]

[Event "Titled Tuesday Blitz March 29 Late 2022"]
[White "Riff, Vincent"]
[Black "Paravyan, David"]
[WhiteFideId "617776"]
[BlackFideId "4194985"]
[WhiteElo "2377"]
[BlackElo "2569"]
[Result "0-1"]
[Round "02"]
[TimeControl "180+1"]
[Date "2022.03.29"]
[WhiteClock "0:02:13"]
[BlackClock "0:02:22"]

1. e4 {[%clk 0:02:47]}  e5 {[%clk 0:02:57]} 2. Nf3 {[%clk 0:02:46]}  Nf6 {[%clk 0:02:58]} 3. Nxe5 {[%clk 0:02:44]}  d6 {[%clk 0:02:57]} 4. Nf3 {[%clk 0:02:44]}  Nxe4 {[%clk 0:02:57]} 5. Nc3 {[%clk 0:02:45]}  Nxc3 {[%clk 0:02:57]} 6. dxc3 {[%clk 0:02:45]}  Be7 {[%clk 0:02:39]} 7. Be3 {[%clk 0:02:44]}  O-O {[%clk 0:02:40]} 8. Qd2 {[%clk 0:02:45]}  Nd7 {[%clk 0:02:40]} 9. O-O-O {[%clk 0:02:45]}  Nf6 {[%clk 0:02:40]} 10. Bd3 {[%clk 0:02:45]}  Re8 {[%clk 0:02:41]} 11. h3 {[%clk 0:02:44]}  Bd7 {[%clk 0:02:39]} 12. Kb1 {[%clk 0:02:44]}  c5 {[%clk 0:02:32]} 13. g4 {[%clk 0:02:39]}  Bc6 {[%clk 0:02:32]} 14. Be2 {[%clk 0:02:34]}  Ne4 {[%clk 0:02:30]} 15. Qc1 {[%clk 0:02:31]}  Bf6 {[%clk 0:02:23]} 16. g5 {[%clk 0:02:22]}  Bxc3 {[%clk 0:02:22]} 17. bxc3 {[%clk 0:02:14]}  Nxc3+ {[%clk 0:02:21]} 18. Ka1 {[%clk 0:02:15]}  Nxe2 {[%clk 0:02:22]} 19. Qd2 {[%clk 0:02:13]}  Bxf3 {[%clk 0:02:22]} 0-1


[Site "https://www.chess.com"]

[Event "Titled Tuesday Blitz March 29 Late 2022"]
[White "Shton, Roman"]
[Black "Gledura, Benjamin"]
[WhiteFideId "14137461"]
[BlackFideId "712779"]
[WhiteElo "2013"]
[BlackElo "2326"]
[Result "0-1"]
[Round "02"]
[TimeControl "180+1"]
[Date "2022.03.30"]
[WhiteClock "0:00:11"]
[BlackClock "0:01:08"]

1. d4 {[%clk 0:02:57]}  Nf6 {[%clk 0:02:59]} 2. Nf3 {[%clk 0:02:55]}  d6 {[%clk 0:02:59]} 3. c4 {[%clk 0:02:53]}  Nbd7 {[%clk 0:03:00]} 4. Nc3 {[%clk 0:02:53]}  e5 {[%clk 0:03:01]} 5. g3 {[%clk 0:02:53]}  g6 {[%clk 0:03:01]} 6. Bg2 {[%clk 0:02:49]}  Bg7 {[%clk 0:03:02]} 7. O-O {[%clk 0:02:48]}  O-O {[%clk 0:03:02]} 8. Qc2 {[%clk 0:02:46]}  Re8 {[%clk 0:02:59]} 9. Rd1 {[%clk 0:02:45]}  exd4 {[%clk 0:02:58]} 10. Nxd4 {[%clk 0:02:44]}  a6 {[%clk 0:02:58]} 11. Bc6 {[%clk 0:02:21]}  Ng4 {[%clk 0:02:49]} 12. Bd5 {[%clk 0:02:10]}  c6 {[%clk 0:02:40]} 13. Bf3 {[%clk 0:01:44]}  Nde5 {[%clk 0:02:40]} 14. Ne4 {[%clk 0:01:37]}  Nxf3+ {[%clk 0:02:31]} 15. exf3 {[%clk 0:01:38]}  Ne5 {[%clk 0:02:27]} 16. c5 {[%clk 0:01:37]}  dxc5 {[%clk 0:01:52]} 17. Nxc6 {[%clk 0:01:28]}  Nxf3+ {[%clk 0:01:48]} 18. Kg2 {[%clk 0:01:26]}  Qc7 {[%clk 0:01:48]} 19. Qxc5 {[%clk 0:00:30]}  bxc6 {[%clk 0:01:42]} 20. Nd6 {[%clk 0:00:30]}  Re5 {[%clk 0:01:21]} 21. Ne8 {[%clk 0:00:17]}  Bh3+ {[%clk 0:01:12]} 22. Kxf3 {[%clk 0:00:16]}  Raxe8 {[%clk 0:01:10]} 23. Qd6 {[%clk 0:00:12]}  Qc8 {[%clk 0:01:09]} 24. Bf4 {[%clk 0:00:11]}  Qg4# {[%clk 0:01:08]} 0-1


[Site "https://www.chess.com"]

[Event "Titled Tuesday Blitz March 29 Late 2022"]
[White "Sjugirov, Sanan"]
[Black "Harshavardhan G B"]
[WhiteFideId "4189302"]
[BlackFideId "25059009"]
[WhiteElo "2602"]
[BlackElo "1831"]
[Result "1-0"]
[Round "02"]
[TimeControl "180+1"]
[Date "2022.03.29"]
[WhiteClock "0:00:30"]
[BlackClock "0:01:04"]

1. d4 {[%clk 0:03:00]}  Nf6 {[%clk 0:02:51]} 2. c4 {[%clk 0:03:00]}  e6 {[%clk 0:02:49]} 3. Nf3 {[%clk 0:03:00]}  b6 {[%clk 0:02:47]} 4. g3 {[%clk 0:03:00]}  Ba6 {[%clk 0:02:47]} 5. b3 {[%clk 0:02:56]}  Bb4+ {[%clk 0:02:43]} 6. Bd2 {[%clk 0:02:56]}  Be7 {[%clk 0:02:44]} 7. Bg2 {[%clk 0:02:55]}  c6 {[%clk 0:02:42]} 8. Bc3 {[%clk 0:02:49]}  d5 {[%clk 0:02:38]} 9. Nbd2 {[%clk 0:02:47]}  Nbd7 {[%clk 0:02:36]} 10. O-O {[%clk 0:02:47]}  O-O {[%clk 0:02:35]} 11. Rc1 {[%clk 0:02:10]}  Rc8 {[%clk 0:02:32]} 12. Re1 {[%clk 0:02:09]}  c5 {[%clk 0:02:32]} 13. cxd5 {[%clk 0:01:57]}  Nxd5 {[%clk 0:02:28]} 14. Bb2 {[%clk 0:01:57]}  cxd4 {[%clk 0:02:26]} 15. Nxd4 {[%clk 0:01:54]}  Bf6 {[%clk 0:02:23]} 16. Ne4 {[%clk 0:01:47]}  Be5 {[%clk 0:02:12]} 17. Qd2 {[%clk 0:01:38]}  Nc5 {[%clk 0:02:02]} 18. Nxc5 {[%clk 0:01:35]}  bxc5 {[%clk 0:01:59]} 19. Nxe6 {[%clk 0:01:30]}  fxe6 {[%clk 0:01:49]} 20. Bxe5 {[%clk 0:01:30]}  c4 {[%clk 0:01:48]} 21. bxc4 {[%clk 0:01:29]}  Bxc4 {[%clk 0:01:49]} 22. Qd4 {[%clk 0:01:18]}  Bxa2 {[%clk 0:01:39]} 23. Qxa7 {[%clk 0:01:16]}  Qg5 {[%clk 0:01:30]} 24. f4 {[%clk 0:01:14]}  Qg6 {[%clk 0:01:24]} 25. Qxa2 {[%clk 0:01:12]}  Ne3 {[%clk 0:01:22]} 26. Bf3 {[%clk 0:01:05]}  h5 {[%clk 0:01:19]} 27. Qb3 {[%clk 0:00:59]}  Ng4 {[%clk 0:01:12]} 28. Bxg4 {[%clk 0:00:57]}  hxg4 {[%clk 0:01:13]} 29. Qd3 {[%clk 0:00:55]}  Qe8 {[%clk 0:01:11]} 30. Rxc8 {[%clk 0:00:54]}  Qxc8 {[%clk 0:01:11]} 31. Rd1 {[%clk 0:00:54]}  Qc5+ {[%clk 0:01:07]} 32. Qd4 {[%clk 0:00:53]}  Qc2 {[%clk 0:01:05]} 33. Bxg7 {[%clk 0:00:38]}  Rf7 {[%clk 0:01:05]} 34. Be5 {[%clk 0:00:30]}  Qxe2 {[%clk 0:01:04]} 35. Qd8+ {[%clk 0:00:31]}  Rf8 {[%clk 0:01:04]} 36. Qg5+ {[%clk 0:00:30]} 1-0


[Site "https://www.chess.com"]

[Event "Titled Tuesday Blitz March 29 Late 2022"]
[White "Srinath, Rao S.V."]
[Black "Ider, Borya"]
[WhiteFideId "5028876"]
[BlackFideId "4901134"]
[WhiteElo "2181"]
[BlackElo "2512"]
[Result "0-1"]
[Round "02"]
[TimeControl "180+1"]
[Date "2022.03.29"]
[WhiteClock "0:00:35"]
[BlackClock "0:01:10"]

1. e4 {[%clk 0:03:00]}  Nf6 {[%clk 0:02:59]} 2. e5 {[%clk 0:03:00]}  Ng8 {[%clk 0:02:59]} 3. d4 {[%clk 0:03:01]}  d6 {[%clk 0:02:59]} 4. Nf3 {[%clk 0:03:00]}  dxe5 {[%clk 0:02:59]} 5. Nxe5 {[%clk 0:03:01]}  Nf6 {[%clk 0:02:58]} 6. Bc4 {[%clk 0:03:01]}  e6 {[%clk 0:02:58]} 7. O-O {[%clk 0:03:01]}  Nbd7 {[%clk 0:02:58]} 8. Nf3 {[%clk 0:02:49]}  c5 {[%clk 0:02:57]} 9. dxc5 {[%clk 0:02:47]}  Bxc5 {[%clk 0:02:56]} 10. Bg5 {[%clk 0:02:47]}  Qc7 {[%clk 0:02:55]} 11. Nbd2 {[%clk 0:02:47]}  a6 {[%clk 0:02:55]} 12. a4 {[%clk 0:02:46]}  b6 {[%clk 0:02:51]} 13. Qe2 {[%clk 0:02:46]}  Bb7 {[%clk 0:02:51]} 14. Bh4 {[%clk 0:02:45]}  O-O {[%clk 0:02:50]} 15. Bg3 {[%clk 0:02:45]}  Qc6 {[%clk 0:02:42]} 16. Bd3 {[%clk 0:02:45]}  h6 {[%clk 0:02:36]} 17. Rfe1 {[%clk 0:02:40]}  Rfd8 {[%clk 0:02:29]} 18. c3 {[%clk 0:02:34]}  Bd6 {[%clk 0:02:23]} 19. Bxd6 {[%clk 0:02:25]}  Qxd6 {[%clk 0:02:24]} 20. Ne4 {[%clk 0:02:20]}  Qf4 {[%clk 0:02:21]} 21. Rad1 {[%clk 0:02:17]}  Kf8 {[%clk 0:01:51]} 22. Nxf6 {[%clk 0:01:38]}  Nxf6 {[%clk 0:01:51]} 23. Bc2 {[%clk 0:01:27]}  Bxf3 {[%clk 0:01:50]} 24. Qxf3 {[%clk 0:01:24]}  Qxf3 {[%clk 0:01:50]} 25. gxf3 {[%clk 0:01:25]}  a5 {[%clk 0:01:48]} 26. Bd3 {[%clk 0:01:23]}  Ke7 {[%clk 0:01:48]} 27. Bb5 {[%clk 0:01:24]}  Nh5 {[%clk 0:01:47]} 28. Kg2 {[%clk 0:01:19]}  Nf4+ {[%clk 0:01:46]} 29. Kg3 {[%clk 0:01:15]}  g5 {[%clk 0:01:47]} 30. h4 {[%clk 0:01:13]}  Kf6 {[%clk 0:01:45]} 31. Rxd8 {[%clk 0:01:06]}  Rxd8 {[%clk 0:01:44]} 32. b4 {[%clk 0:01:05]}  e5 {[%clk 0:01:41]} 33. bxa5 {[%clk 0:01:04]}  bxa5 {[%clk 0:01:41]} 34. c4 {[%clk 0:01:04]}  gxh4+ {[%clk 0:01:39]} 35. Kh2 {[%clk 0:01:03]}  Rd2 {[%clk 0:01:39]} 36. Rf1 {[%clk 0:00:59]}  Rc2 {[%clk 0:01:39]} 37. Kg1 {[%clk 0:00:55]}  h3 {[%clk 0:01:37]} 38. Kh2 {[%clk 0:00:54]}  Kg5 {[%clk 0:01:33]} 39. Kg3 {[%clk 0:00:54]}  h5 {[%clk 0:01:32]} 40. Ba6 {[%clk 0:00:52]}  h4+ {[%clk 0:01:32]} 41. Kh2 {[%clk 0:00:52]}  Kf6 {[%clk 0:01:33]} 42. Bb5 {[%clk 0:00:48]}  Ke7 {[%clk 0:01:33]} 43. Ba6 {[%clk 0:00:46]}  Kd6 {[%clk 0:01:33]} 44. Rd1+ {[%clk 0:00:45]}  Kc5 {[%clk 0:01:33]} 45. Kg1 {[%clk 0:00:45]}  h2+ {[%clk 0:01:31]} 46. Kxh2 {[%clk 0:00:45]}  Rxf2+ {[%clk 0:01:31]} 47. Kg1 {[%clk 0:00:46]}  Rxf3 {[%clk 0:01:31]} 48. Rd8 {[%clk 0:00:47]}  Rg3+ {[%clk 0:01:30]} 49. Kh1 {[%clk 0:00:45]}  e4 {[%clk 0:01:25]} 50. Re8 {[%clk 0:00:44]}  e3 {[%clk 0:01:23]} 51. Re4 {[%clk 0:00:42]}  e2 {[%clk 0:01:22]} 52. Kh2 {[%clk 0:00:42]}  f5 {[%clk 0:01:18]} 53. Re8 {[%clk 0:00:35]}  Rh3+ {[%clk 0:01:09]} 54. Kg1 {[%clk 0:00:35]}  Rf3 {[%clk 0:01:10]} 0-1


[Site "https://www.chess.com"]

[Event "Titled Tuesday Blitz March 29 Late 2022"]
[White "Stanisz, Patryk"]
[Black "Cervantes Landeiro, Thalia"]
[WhiteFideId "1123106"]
[BlackFideId "3520498"]
[WhiteElo "1876"]
[BlackElo "2021"]
[Result "1-0"]
[Round "02"]
[TimeControl "180+1"]
[Date "2022.03.30"]
[WhiteClock "0:00:12"]
[BlackClock "0:00:08"]

1. Nf3 {[%clk 0:03:00]}  d5 {[%clk 0:02:59]} 2. d4 {[%clk 0:03:01]}  Nf6 {[%clk 0:02:59]} 3. c4 {[%clk 0:03:00]}  dxc4 {[%clk 0:02:52]} 4. e3 {[%clk 0:02:59]}  e6 {[%clk 0:02:53]} 5. Bxc4 {[%clk 0:02:59]}  c5 {[%clk 0:02:53]} 6. O-O {[%clk 0:02:59]}  Nc6 {[%clk 0:02:54]} 7. Qe2 {[%clk 0:02:57]}  a6 {[%clk 0:02:52]} 8. a4 {[%clk 0:02:55]}  cxd4 {[%clk 0:02:50]} 9. Rd1 {[%clk 0:02:54]}  Be7 {[%clk 0:02:50]} 10. Nxd4 {[%clk 0:02:51]}  Nxd4 {[%clk 0:02:47]} 11. Rxd4 {[%clk 0:02:52]}  Qc7 {[%clk 0:02:46]} 12. b3 {[%clk 0:02:52]}  O-O {[%clk 0:02:44]} 13. Bb2 {[%clk 0:02:06]}  Bd7 {[%clk 0:02:35]} 14. Nd2 {[%clk 0:01:43]}  b5 {[%clk 0:01:59]} 15. Bd3 {[%clk 0:01:35]}  bxa4 {[%clk 0:01:18]} 16. bxa4 {[%clk 0:01:36]}  Rab8 {[%clk 0:01:15]} 17. Nf3 {[%clk 0:01:27]}  Qb6 {[%clk 0:01:08]} 18. Rb1 {[%clk 0:01:07]}  Bc6 {[%clk 0:00:57]} 19. Ne5 {[%clk 0:00:59]}  Bd5 {[%clk 0:00:48]} 20. h4 {[%clk 0:00:54]}  Ba2 {[%clk 0:00:47]} 21. Nc4 {[%clk 0:00:51]}  Qb7 {[%clk 0:00:36]} 22. Na5 {[%clk 0:00:30]}  Qc7 {[%clk 0:00:34]} 23. Ra1 {[%clk 0:00:20]}  Bd5 {[%clk 0:00:22]} 24. Nc4 {[%clk 0:00:20]}  e5 {[%clk 0:00:17]} 25. Rxd5 {[%clk 0:00:18]}  Nxd5 {[%clk 0:00:17]} 26. Bxe5 {[%clk 0:00:19]}  Qd7 {[%clk 0:00:13]} 27. Bxb8 {[%clk 0:00:18]}  Rxb8 {[%clk 0:00:14]} 28. Ne5 {[%clk 0:00:18]}  Qe6 {[%clk 0:00:14]} 29. f4 {[%clk 0:00:13]}  Bxh4 {[%clk 0:00:14]} 30. Qh5 {[%clk 0:00:12]}  Qh6 {[%clk 0:00:09]} 31. Qxf7+ {[%clk 0:00:12]}  Kh8 {[%clk 0:00:10]} 32. Qxd5 {[%clk 0:00:11]}  Bf6 {[%clk 0:00:07]} 33. Ng4 {[%clk 0:00:11]}  Qh4 {[%clk 0:00:06]} 34. Nxf6 {[%clk 0:00:11]}  Qxf6 {[%clk 0:00:07]} 35. Qe4 {[%clk 0:00:11]}  Qxa1+ {[%clk 0:00:07]} 36. Kf2 {[%clk 0:00:11]}  g6 {[%clk 0:00:07]} 37. Bxa6 {[%clk 0:00:07]}  Qb2+ {[%clk 0:00:08]} 38. Kf3 {[%clk 0:00:07]}  Qf6 {[%clk 0:00:08]} 39. Bd3 {[%clk 0:00:07]}  Rf8 {[%clk 0:00:08]} 40. Qd4 {[%clk 0:00:06]}  Qxd4 {[%clk 0:00:08]} 41. exd4 {[%clk 0:00:07]}  Ra8 {[%clk 0:00:08]} 42. Bb5 {[%clk 0:00:07]}  Kg7 {[%clk 0:00:09]} 43. Ke4 {[%clk 0:00:07]}  Kf6 {[%clk 0:00:09]} 44. d5 {[%clk 0:00:08]}  Rd8 {[%clk 0:00:09]} 45. Bc6 {[%clk 0:00:08]}  Rb8 {[%clk 0:00:09]} 46. Kd4 {[%clk 0:00:08]}  Rb4+ {[%clk 0:00:09]} 47. Kc5 {[%clk 0:00:08]}  Rxf4 {[%clk 0:00:09]} 48. d6 {[%clk 0:00:08]}  Rf1 {[%clk 0:00:08]} 49. a5 {[%clk 0:00:08]}  Rc1+ {[%clk 0:00:08]} 50. Kb6 {[%clk 0:00:08]}  Ke6 {[%clk 0:00:09]} 51. d7 {[%clk 0:00:09]}  Ke7 {[%clk 0:00:06]} 52. a6 {[%clk 0:00:08]}  Kd8 {[%clk 0:00:05]} 53. a7 {[%clk 0:00:07]}  Rb1+ {[%clk 0:00:06]} 54. Bb5 {[%clk 0:00:07]}  Ra1 {[%clk 0:00:04]} 55. Ba6 {[%clk 0:00:07]}  Rb1+ {[%clk 0:00:04]} 56. Kc5 {[%clk 0:00:08]}  Rc1+ {[%clk 0:00:05]} 57. Kd6 {[%clk 0:00:08]}  Rd1+ {[%clk 0:00:05]} 58. Ke6 {[%clk 0:00:09]}  Re1+ {[%clk 0:00:04]} 59. Kf6 {[%clk 0:00:09]}  Ra1 {[%clk 0:00:03]} 60. a8=Q+ {[%clk 0:00:08]}  Kxd7 {[%clk 0:00:04]} 61. Bc8+ {[%clk 0:00:08]}  Kc7 {[%clk 0:00:04]} 62. Qxa1 {[%clk 0:00:09]}  Kxc8 {[%clk 0:00:04]} 63. Qd4 {[%clk 0:00:08]}  Kc7 {[%clk 0:00:04]} 64. Kg7 {[%clk 0:00:09]}  Kc6 {[%clk 0:00:04]} 65. Kxh7 {[%clk 0:00:10]}  Kb7 {[%clk 0:00:05]} 66. Kxg6 {[%clk 0:00:10]}  Ka6 {[%clk 0:00:05]} 67. Kf6 {[%clk 0:00:11]}  Ka5 {[%clk 0:00:06]} 68. Ke6 {[%clk 0:00:12]}  Kb5 {[%clk 0:00:06]} 69. Qc3 {[%clk 0:00:12]}  Ka4 {[%clk 0:00:06]} 70. Qb2 {[%clk 0:00:11]}  Ka5 {[%clk 0:00:06]} 71. Kd5 {[%clk 0:00:12]}  Ka6 {[%clk 0:00:07]} 72. Kc6 {[%clk 0:00:12]}  Ka7 {[%clk 0:00:08]} 73. Qb7# {[%clk 0:00:12]} 1-0


[Site "https://www.chess.com"]